Cogmind - Beta 13 @@@ ROGUE MODE // 2024.05.09 @ 17:16:35 Player: Gabe+Kate4EVR Result: Destroyed by P-70 Sage with Tesla Rifle Performance ------------- Evolutions (6) 3000 Regions Visited (8) 1600 Robots Destroyed (50) 250 Value Destroyed (1054) 1054 Prototype IDs (2) 40 Alien Tech Used (0) 0 Bonus (500) 500 TOTAL SCORE: 6444 Bonus ------- Entered DSFs 500 Cogmind --------- Core Integrity 0/1150 Matter 219/300 Energy 100/100 System Corruption 12% Temperature Cool (0) Movement Core (50) Location -4/Factory Parts ------- > --- POWER (3) -------- (None) > --- PROPULSION (8) --- (None) > --- UTILITY (6) ------ Advanced Coolant Injector Improved Signal Interpreter > --- WEAPON (2) ------- (None) > --- INVENTORY (5) ---- Coolant Injector Propulsion Shielding Advanced Thermal Shield Improved Field Recycling Unit (0) Peak State ------------ > --- POWER ------------ Hybrid Deuterium Engine Heavy Deuterium Engine > --- PROPULSION ------- Antigrav System Linear Gravjet Linear Gravjet Linear Gravjet Linear Gravjet Linear Gravjet Linear Gravjet Improved Linear Gravjet > --- UTILITY ---------- Advanced Cooling System Small Storage Unit Advanced Weight Redist. System Improved Signal Interpreter Propulsion Shielding Propulsion Shielding > --- WEAPON ----------- Coil Gun Heavy Flail > --- INVENTORY -------- Coolant Injector Propulsion Shielding Advanced Thermal Shield Improved Field Recycling Unit Grenade Launcher Smartbomb Launcher Power Sword [Rating: 84] Favorites ----------- Power Ion Engine Engine Ion Engine Propulsion Aluminum Leg Treads Light Treads Leg Aluminum Leg Wheel Wheel Hover Unit Linear Gravjet Flight Unit Flight Unit Utility Propulsion Shielding Device Advanced Weight Redist. System Storage Large Storage Unit Processor Machine Analyzer Hackware System Shield Protection Propulsion Shielding Weapon Small Laser Energy Gun Small Laser Ballistic Gun Heavy Assault Rifle Launcher Grenade Launcher Impact Weapon Heavy Flail Slashing Weapon Power Sword Build | -11 -10 -9 -8 -7 -6 -5 -5 -4 ------- Run | Yrd Mat Mat Mat Fac Fac Fac DSF Fac Slots Evolved 12 | . . 2 2 2 2 2 . 2 Power 2 | . . . . . 1 1 . . Propulsion 6 | . . 2 2 . . . . 2 Utility 4 | . . . . 2 1 1 . . Weapon . | . . . . . . . . . Parts Attached 95 | 9 15 32 6 7 2 6 7 11 Power 8 | 1 1 2 2 1 1 . . . Engine 8 | 1 1 2 2 1 1 . . . Core . | . . . . . . . . . Reactor . | . . . . . . . . . Propulsion 41 | 4 4 21 2 1 . . 7 2 Treads 3 | 2 1 . . . . . . . Leg 16 | 2 . 14 . . . . . . Wheel 6 | . 3 3 . . . . . . Hover 9 | . . . . . . . 7 2 Flight 7 | . . 4 2 1 . . . . Utility 23 | 1 7 5 . 4 1 2 . 3 Device 8 | . 1 1 . 1 1 1 . 3 Storage 7 | 1 3 3 . . . . . . Processor 2 | . 1 . . 1 . . . . Hackware 1 | . . . . 1 . . . . Protection 5 | . 2 1 . 1 . 1 . . Artifact . | . . . . . . . . . Weapon 23 | 3 3 4 2 1 . 4 . 6 Energy Gun 8 | 2 2 2 2 . . . . . Energy Cannon . | . . . . . . . . . Ballistic Gun 4 | 1 . 1 . . . 1 . 1 Ballistic Cannon . | . . . . . . . . . Launcher 9 | . 1 1 . 1 . 2 . 4 Special Weapon . | . . . . . . . . . Impact Weapon 1 | . . . . . . 1 . . Slashing Weapon 1 | . . . . . . . . 1 Piercing Weapon . | . . . . . . . . . Special Melee Weapon . | . . . . . . . . . Unidentified Prototypes 2 | . . . 1 . . . . 1 Parts Lost 24 | . . 2 . 1 . . 1 20 Power 4 | . . 2 . . . . . 2 Propulsion 9 | . . . . 1 . . . 8 Utility 6 | . . . . . . . 1 5 Weapon 5 | . . . . . . . . 5 Highest Loss Streak 19 | . . 1 . 1 . . 1 19 To Critical Strikes 1 | . . . . . . . . 1 Average Slot Usage (%) 91 | . 98 96 98 98 100 91 94 60 Engine 10 | . 14 8 9 7 13 11 11 6 Treads 1 | . 3 . . . . . . . Leg 16 | . 21 32 . . . . . . Wheel 1 | . 1 2 . . . . . . Hover 4 | . . . . . . . 23 22 Flight 8 | . . 8 52 46 40 35 11 . Device 3 | . 2 3 . . 6 11 11 7 Storage 10 | . 14 9 9 7 6 5 5 3 Processor 5 | . 7 5 . 6 6 5 5 5 Protection 4 | . 3 2 9 9 13 11 11 6 Energy Gun 14 | . 22 17 9 3 . . . . Ballistic Gun 2 | . . 4 9 7 6 1 . 1 Launcher 3 | . 5 . . 3 6 3 5 2 Naked Turns . | . . . . . . . . . Heaviest Build 88 | 9 88 88 23 24 31 32 32 35 Greatest Support 84 | 40 26 40 24 24 33 33 63 84 Greatest Overweight (x) 8 | . 8 2 1 . . . 1 3 Average Overweight (x) . | . 1 . . . . . . . Largest Inventory Capacity 25 | 8 25 25 8 8 8 8 8 8 Average Capacity 13 | 6 18 14 8 8 8 8 8 7 Most Carried 23 | 5 20 23 8 8 8 8 8 8 Average Carried 11 | 3 13 13 7 7 6 7 8 7 Final Capacity 25 | 8 25 8 8 8 8 8 8 5 Final Carried 20 | 5 20 8 8 8 8 8 8 4 Class Distribution -------------------- 64% | Mutant 18% | Scavenger-Sprinter 12% | Sprinter 4% | Scavenger-Mutant Dominant Class ---------------- Mutant | -10/Materials Mutant | -9/Materials Scavenger-Sprinter | -8/Materials Scavenger-Sprinter | -7/Factory Scavenger-Sprinter | -6/Factory Scavenger-Sprinter | -5/Factory Sprinter | -5/DSF Sprinter | -4/Factory Resources | -11 -10 -9 -8 -7 -6 -5 -5 -4 ----------- Run | Yrd Mat Mat Mat Fac Fac Fac DSF Fac Matter Collected 1401 | 221 329 423 . 114 105 . . 209 Remotely . | . . . . . . . . . Salvage Created 1679 | . 560 711 . 57 19 . . 332 Parts 86 | . 24 30 . 15 2 . . 15 Haulers Intercepted 2 | . 2 . . . . . . . Recyclers Shooed 12 | . 3 7 . 2 . . . . Parts Field Recycled . | . . . . . . . . . Retrieved Matter . | . . . . . . . . . Parts Self-Destructed . | . . . . . . . . . Prevented . | . . . . . . . . . Kills | -11 -10 -9 -8 -7 -6 -5 -5 -4 ------- Run | Yrd Mat Mat Mat Fac Fac Fac DSF Fac Combat Hostiles Destroyed 27 | . 8 11 . 2 . . . 6 Melee 3 | . . . . . . . . 3 Guns 14 | . 4 9 . 1 . . . . AOE 9 | . 4 1 . 1 . . . 3 Classes Destroyed 11 | . 8 1 . 1 . . . 1 Worker 5 | . 2 1 . 2 . . . . Builder 2 | . . . . 2 . . . . Hauler 2 | . 2 . . . . . . . Recycler 9 | . 3 5 . . . . . 1 Mechanic 1 | . 1 . . . . . . . Operator 3 | . 2 . . . 1 . . . Watcher 1 | . 1 . . . . . . . Swarmer 13 | . 3 6 . 1 . . . 3 Grunt 11 | . 5 4 . 1 . . . 1 Sentry 1 | . . 1 . . . . . . Programmer 2 | . . . . . . . . 2 Best Kill Streak 6 | . 4 5 . 6 1 . . 4 Combat Bots Only 5 | . 3 5 . 2 . . . 3 Max Kills in Single Turn 3 | . 3 1 . 2 1 . . 2 Gunslinging . | . . . . . . . . . Exploded 2 | . 2 1 . 1 . . . 2 Melee 1 | . . . . . . . . 1 Uniques/NPCs Destroyed . | . . . . . . . . . Combat | -11 -10 -9 -8 -7 -6 -5 -5 -4 -------- Run | Yrd Mat Mat Mat Fac Fac Fac DSF Fac Hostile Shots Fired 365 | . 45 54 . 39 9 . 11 207 Missed 145 | . 15 14 . 20 6 . 8 82 Damage Taken 3881 | . 415 411 . 173 17 . 94 2771 Core 1397 | . 108 110 . 12 . . . 1167 Absorbed by Shields . | . . . . . . . . . Redirected to Shielding 149 | . 16 . . 16 1 . 3 113 Regen/Repaired (Parts) 4 | . . . 4 . . . . . Core Remaining (%) 89 | 100 56 72 100 98 100 . 100 . Volleys Fired 140 | . 65 54 . 5 2 . . 14 Largest 2 | . 2 2 . 2 2 . . 1 Hottest 95 | . 90 95 . 86 53 . . 49 Shots Fired 255 | . 127 100 . 10 4 . . 14 Gun 230 | . 115 99 . 6 2 . . 8 Cannon . | . . . . . . . . . Launcher 25 | . 12 1 . 4 2 . . 6 Special . | . . . . . . . . . Kinetic 46 | . . 31 . 5 2 . . 8 Thermal 182 | . 115 66 . 1 . . . . Explosive 25 | . 12 1 . 4 2 . . 6 Electromagnetic 2 | . . 2 . . . . . . Robot Hit Streak 9 | . 7 9 . 2 3 . . 6 Robot Miss Streak 5 | . 4 5 . 1 . . . 2 Penetration Max . | . . . . . . . . . Secondary Targets . | . . . . . . . . . Shots Hit Robots 156 | . 67 62 . 5 2 . . 20 Core Hits 93 | . 32 24 . 14 3 . . 20 Critical Kills . | . . . . . . . . . Critical Parts Destroyed 1 | . . . . . . . . 1 Critical Strikes 6 | . 2 3 . . . . . 1 Burn 5 | . 2 3 . . . . . . Destroy 1 | . . . . . . . . 1 Melee Attacks 14 | . . . . . . . . 14 Impact 1 | . . . . . . . . 1 Slashing 13 | . . . . . . . . 13 Piercing . | . . . . . . . . . Sneak Attacks 1 | . . . . . . . . 1 Combat Hostiles . | . . . . . . . . . Follow-up Attacks . | . . . . . . . . . Damage Inflicted 3935 | . 1150 868 . 486 83 . . 1348 Guns 1704 | . 719 791 . 59 16 . . 119 Cannons . | . . . . . . . . . Explosions 1826 | . 431 77 . 427 67 . . 824 Melee 384 | . . . . . . . . 384 Ramming 21 | . . . . . . . . 21 Kinetic 455 | . . 261 . 59 16 . . 119 Thermal 1249 | . 719 530 . . . . . . Explosive 1826 | . 431 77 . 427 67 . . 824 Electromagnetic . | . . . . . . . . . Impact . | . . . . . . . . . Slashing 384 | . . . . . . . . 384 Piercing . | . . . . . . . . . Highest Corruption 12 | . 3 . . . . . . 12 Average Corruption 4 | . 2 . . . . . . 8 Corruption Purged . | . . . . . . . . . Corruption Blocked . | . . . . . . . . . Effects 15 | . 9 . . . . . . 6 Message Errors 5 | . 4 . . . . . . 1 Matter Fused 2 | . . . . . . . . 2 Heat Flow Errors 4 | . 3 . . . . . . 1 Energy Discharges 1 | . . . . . . . . 1 Parts Rejected 1 | . 1 . . . . . . . Misfires 1 | . 1 . . . . . . . Alerts 1 | . . . . . . . . 1 Overload Shots . | . . . . . . . . . Overflow Damage 40 | . 18 . . . . . . 22 Projectiles . | . . . . . . . . . Explosions 18 | . 18 . . . . . . . Melee 22 | . . . . . . . . 22 Knockbacks . | . . . . . . . . . Impact . | . . . . . . . . . Kinetic . | . . . . . . . . . Secondary . | . . . . . . . . . Self-Inflicted Damage 83 | . 47 . . 18 . . . 18 Shots 6 | . 4 . . 1 . . . 1 Rammed 5 | . . . . . . . . 5 Targets Rammed 5 | . . . . . . . . 5 Kicked . | . . . . . . . . . Crushed . | . . . . . . . . . Highest Temperature 543 | . 371 121 440 240 48 . 186 543 Average Temperature 98 | . 92 37 106 109 20 . 86 174 Received Heat Transfer 631 | . 201 135 . 54 . . 12 229 Effects 10 | . 4 . . 1 . . . 5 Shutdowns 2 | . 1 . . . . . . 1 Energy Bleed 1 | . . . . 1 . . . . Interference 5 | . 3 . . . . . . 2 Matter Decay 1 | . . . . . . . . 1 Damage (minor) 1 | . . . . . . . . 1 Siege Activations . | . . . . . . . . . Robots Corrupted . | . . . . . . . . . Combat Hostiles . | . . . . . . . . . Parts Fried . | . . . . . . . . . Impact Corruptions . | . . . . . . . . . Robots Melted 1 | . . 1 . . . . . . Combat Hostiles 1 | . . 1 . . . . . . Parts Melted 3 | . 1 2 . . . . . . Heat Transferred 3679 | . 1985 1694 . . . . . . Parts Sabotaged . | . . . . . . . . . Parts Stolen . | . . . . . . . . . Parts Stripped . | . . . . . . . . . Power Chain Reactions . | . . . . . . . . . Alert | -11 -10 -9 -8 -7 -6 -5 -5 -4 ------- Run | Yrd Mat Mat Mat Fac Fac Fac DSF Fac Peak Influence 376 | . 233 181 73 343 229 127 103 376 Initial 168 | . . 16 65 32 168 112 88 48 Average 83 | . 74 74 66 197 191 115 91 70 Maximum Alert Level 1 | . 1 . . 1 1 . . 1 Low Security (%) 88 | 100 90 100 100 48 79 100 100 83 Level 1 11 | . 9 . . 51 20 . . 16 Level 2 . | . . . . . . . . . Level 3 . | . . . . . . . . . Level 4 . | . . . . . . . . . Level 5 . | . . . . . . . . . High Security . | . . . . . . . . . Max Security . | . . . . . . . . . Squads Dispatched 12 | . 2 1 . 4 . 1 1 3 Investigation 1 | . . . . . . . . 1 Extermination 1 | . . . . . . . . 1 Reinforcement 9 | . 2 1 . 4 . 1 1 . Assault . | . . . . . . . . . Garrison 1 | . . . . . . . . 1 Intercept . | . . . . . . . . . Searches Triggered . | . . . . . . . . . Construction Impeded 1 | . . . . 1 . . . . Haulers Reinforced 1 | . . . . 1 . . . . Active Scanning Responses . | . . . . . . . . . Cargo Convoy Interrupts . | . . . . . . . . . Stealth | -11 -10 -9 -8 -7 -6 -5 -5 -4 --------- Run | Yrd Mat Mat Mat Fac Fac Fac DSF Fac Distress Signals 3 | . . . . 1 . . . 2 Communications Jammed . | . . . . . . . . . Distress Signals . | . . . . . . . . . Times Spotted 79 | . 17 15 . 14 2 1 3 27 Peak Tracking Total 11 | . 5 5 . 7 1 . 3 11 Tactical Retreats 10 | . 1 . . 4 . . 1 4 Traps | -11 -10 -9 -8 -7 -6 -5 -5 -4 ------- Run | Yrd Mat Mat Mat Fac Fac Fac DSF Fac Traps Triggered 3 | . 2 . . . . . 1 . Indirectly . | . . . . . . . . . Trap Hack Attempts . | . . . . . . . . . Triggered . | . . . . . . . . . Disarmed . | . . . . . . . . . Reprogrammed . | . . . . . . . . . Reused . | . . . . . . . . . Traps Extracted . | . . . . . . . . . Installed . | . . . . . . . . . Triggered . | . . . . . . . . . Machines | -11 -10 -9 -8 -7 -6 -5 -5 -4 ---------- Run | Yrd Mat Mat Mat Fac Fac Fac DSF Fac Machines Disabled 7 | . 3 . . . . . . 4 Max in Single Turn 2 | . 1 . . . . . . 2 Garrison Access 1 | . . . 1 . . . . . Machines Repaired . | . . . . . . . . . Machines Dismantled . | . . . . . . . . . Machines Sabotaged . | . . . . . . . . . Overloaded Fab Kills . | . . . . . . . . . Hacking | -11 -10 -9 -8 -7 -6 -5 -5 -4 --------- Run | Yrd Mat Mat Mat Fac Fac Fac DSF Fac Machines Accessed 16 | . 4 1 3 4 . 2 . 2 Terminals 12 | . 4 1 1 4 . 1 . 1 Fabricators . | . . . . . . . . . Repair Stations 1 | . . . 1 . . . . . Recycling Units 1 | . . . . . . 1 . . Scanalyzers . | . . . . . . . . . Garrison Access 2 | . . . 1 . . . . 1 Total Hacks 29 | . 6 3 7 6 . 3 . 4 Successful 7 | . 1 . 4 . . 1 . 1 Failed 22 | . 5 3 3 6 . 2 . 3 Catastrophic 4 | . . 1 1 2 . . . . Database Lockouts . | . . . . . . . . . Manual 14 | . 6 3 . 4 . . . 1 Terminals 19 | . 6 3 1 6 . 2 . 1 Fabricators . | . . . . . . . . . Repair Stations 4 | . . . 4 . . . . . Recycling Units 1 | . . . . . . 1 . . Scanalyzers . | . . . . . . . . . Garrison Access 5 | . . . 2 . . . . 3 Terminal Hacks 4 | . 1 . 1 . . 1 . 1 Open DSF 1 | . . . . . . 1 . . Unreport Threat 1 | . . . . . . . . 1 Hauler Manifests 1 | . 1 . . . . . . . Zone Layout 1 | . . . 1 . . . . . Fabricator Hacks . | . . . . . . . . . Repair Station Hacks 2 | . . . 2 . . . . . Scan Component 1 | . . . 1 . . . . . Repair 1 | . . . 1 . . . . . Recycling Unit Hacks . | . . . . . . . . . Scanalyzer . | . . . . . . . . . Garrison Access Hacks 1 | . . . 1 . . . . . Seal Access 1 | . . . 1 . . . . . Unauthorized Hacks . | . . . . . . . . . Terminals . | . . . . . . . . . Fabricators . | . . . . . . . . . Repair Stations . | . . . . . . . . . Recycling Units . | . . . . . . . . . Scanalyzers . | . . . . . . . . . Garrison Access . | . . . . . . . . . Data Cores Recovered 1 | . . . . . 1 . . . Used . | . . . . . . . . . Hacking Detections 8 | . 3 1 . 2 . . . 2 Full Trace Events 1 | . . . . . . . . 1 Feedback Events . | . . . . . . . . . Feedback Blocked . | . . . . . . . . . Robot Schematics Acquired . | . . . . . . . . . Robots Built . | . . . . . . . . . Authchips . | . . . . . . . . . Time . | . . . . . . . . . Total Robot Build Rating . | . . . . . . . . . Part Schematics Acquired . | . . . . . . . . . Parts Built . | . . . . . . . . . Authchips . | . . . . . . . . . Time . | . . . . . . . . . Total Part Build Rating . | . . . . . . . . . Parts Repaired 1 | . . . 1 . . . . . Time 26 | . . . 26 . . . . . Parts Recycled . | . . . . . . . . . Recycled Matter . | . . . . . . . . . Retrieved Matter . | . . . . . . . . . Retrieved Components . | . . . . . . . . . Parts Scanalyzed . | . . . . . . . . . Part Schematics Acquired . | . . . . . . . . . Parts Damaged . | . . . . . . . . . Bothacking | -11 -10 -9 -8 -7 -6 -5 -5 -4 ------------ Run | Yrd Mat Mat Mat Fac Fac Fac DSF Fac Used RIF Installer . | . . . . . . . . . Robots Hacked . | . . . . . . . . . Non-combat . | . . . . . . . . . Combat . | . . . . . . . . . Robot Hacks Applied . | . . . . . . . . . Relay Couplers Released . | . . . . . . . . . Fabnet Peak Effective % . | . . . . . . . . . Robots Rewired . | . . . . . . . . . Allies Hacked . | . . . . . . . . . Hacks Repelled . | . . . . . . . . . Allies | -11 -10 -9 -8 -7 -6 -5 -5 -4 -------- Run | Yrd Mat Mat Mat Fac Fac Fac DSF Fac Total Allies . | . . . . . . . . . Largest Group . | . . . . . . . . . Highest-Rated Group . | . . . . . . . . . Highest-Rated Ally . | . . . . . . . . . Total Orders . | . . . . . . . . . Ally Attacks . | . . . . . . . . . Total Damage . | . . . . . . . . . Kills . | . . . . . . . . . Allies Corrupted . | . . . . . . . . . Allies Melted . | . . . . . . . . . Intel | -11 -10 -9 -8 -7 -6 -5 -5 -4 ------- Run | Yrd Mat Mat Mat Fac Fac Fac DSF Fac Robot Analysis Total . | . . . . . . . . . Derelict Logs Recovered . | . . . . . . . . . Drone Launches . | . . . . . . . . . Drone Recoveries . | . . . . . . . . . Exploration | -11 -10 -9 -8 -7 -6 -5 -5 -4 ------------- Run | Yrd Mat Mat Mat Fac Fac Fac DSF Fac Turns Passed 3253 | 81 1441 630 119 234 62 39 70 577 Spaces Moved 2922 | 53 547 377 192 780 163 102 178 530 Core 146 | 4 . . . . . . . 142 Treads 77 | 10 67 . . . . . . . Legs 675 | 39 413 223 . . . . . . Wheels 99 | . 67 32 . . . . . . Hover 516 | . . . . . . . 128 388 Flight 1409 | . . 122 192 780 163 102 50 . Fastest Speed 20 | 50 120 31 25 25 25 25 20 20 Average Speed 72 | 122 216 92 25 25 25 25 23 33 Slowest Speed 480 | 160 480 260 111 25 25 25 120 200 Overloaded Moves . | . . . . . . . . . Propulsion Burnouts . | . . . . . . . . . Robots Hopped 15 | . . 1 6 7 1 . . . Cave-ins Triggered . | . . . . . . . . . Exploration Rate (%) 27 | 4 65 26 17 21 6 3 90 13 Regions Visited 8 Branch Regions . Pre-discovered Areas . | . . . . . . . . . Known Exits Taken 3 | . . . . 1 1 1 . . Unknown Exits Taken 4 | 1 1 1 1 . . . . . Scrap Searched . | . . . . . . . . . Spaces Dug . | . . . . . . . . . Terrain Destroyed 174 | . 47 4 . 19 10 . . 94 Melee . | . . . . . . . . . Projectile . | . . . . . . . . . AOE 174 | . 47 4 . 19 10 . . 94 Terrain Rammed . | . . . . . . . . . Walls Destroyed . | . . . . . . . . . Machines Disabled . | . . . . . . . . . Actions | -11 -10 -9 -8 -7 -6 -5 -5 -4 --------- Run | Yrd Mat Mat Mat Fac Fac Fac DSF Fac Total 3767 | 66 680 565 256 809 178 116 207 890 Wait 465 | . 28 45 56 . 11 1 12 312 Move 2886 | 52 546 374 180 765 160 102 177 530 Hop 14 | . . 1 5 7 1 . . . Pick Up 58 | 1 13 24 4 12 2 . 2 . Fast Attach 45 | 9 9 6 2 3 . 3 7 6 Attach 20 | . 1 9 2 1 2 2 . 3 Detach 23 | 4 6 8 . 1 . 4 . . Swap 30 | . 5 17 2 3 . 1 . 2 Drop 65 | . 7 27 5 12 . 3 9 2 Fire 140 | . 65 54 . 5 2 . . 14 Melee 14 | . . . . . . . . 14 Ram 5 | . . . . . . . . 5 Kick . | . . . . . . . . . Crush . | . . . . . . . . . Escape Stasis . | . . . . . . . . . Rewire 2 | . . . . . . . . 2 Trap . | . . . . . . . . . Miscellaneous . | . . . . . . . . . Route ------- -11/Scrapyard -10/Materials (discovered 2 exits: *Mat / [*Min]) -9/Materials -8/Materials -7/Factory (discovered 3 exits: *Fac / *Low x2) -6/Factory -5/Factory -5/DSF -4/Factory History --------- Turn | Location | Event 3 | -11/Scrapyard | Discovered new exit (range 16) 82 | -11/Scrapyard | Entered Materials 316 | -10/Materials | Build established: Mutant 651 | -10/Materials | Discovered new exit (range 6) 1507 | -10/Materials | Discovered new exit (range 11) 1523 | -10/Materials | Entered another Materials area 1523 | -9/Materials | Evolved 2 slots: Propulsion x2 2144 | -9/Materials | Discovered new exit (range 12) 2153 | -9/Materials | Entered another Materials area 2153 | -8/Materials | Evolved 2 slots: Propulsion x2 2256 | -8/Materials | Repaired Flight Unit 2265 | -8/Materials | Discovered new exit (range 14) 2272 | -8/Materials | Entered Factory 2272 | -7/Factory | Evolved 2 slots: Utility x2 2308 | -7/Factory | Discovered new exit (range 6) 2309 | -7/Factory | Identified exit to Lower Caves 2321 | -7/Factory | Build established: Scavenger-Sprinter 2418 | -7/Factory | Discovered exit to Lower Caves (range 5) 2456 | -7/Factory | Discovered new exit (range 11) 2474 | -7/Factory | Identified exit to Factory 2506 | -7/Factory | Entered another Factory area 2506 | -6/Factory | Evolved 2 slots: Power x1, Utility x1 2554 | -6/Factory | Discovered new exit (range 9) 2568 | -6/Factory | Identified exit to Factory 2568 | -6/Factory | Entered another Factory area 2568 | -5/Factory | Evolved 2 slots: Power x1, Utility x1 2607 | -5/Factory | Identified exit to DSF 2607 | -5/Factory | Entered DSF 2629 | -5/DSF | Additional patrols routed to DSF 2673 | -5/DSF | Discovered new exit (range 15) 2677 | -5/DSF | Identified exit to Factory 2677 | -5/DSF | Entered Factory 2677 | -4/Factory | Evolved 2 slots: Propulsion x2 2880 | -4/Factory | Garrison activated, responded to threat 2912 | -4/Factory | Build established: Sprinter 3136 | -4/Factory | Lost 19 parts (2p8n5u4w) 3148 | -4/Factory | Core integrity fell below 50% 3148 | -4/Factory | System corruption reached 10% 3232 | -4/Factory | Core integrity fell below 20% 3254 | -4/Factory | Destroyed by P-70 Sage with Tesla Rifle Last Messages --------------- 03241_ R-10 Processor collects Autogun. 03246_ R-10 Processor collects Lgt. Nuclear Core. 03247_ Sneak attack on R-10 Processor. 03247_ R-10 Processor destroyed. 03248_ Acquired 128 matter. 03249_ Critical hit (Destroy). 03249_ Power Sword destroyed. 03250_ Slammed into S-27 Virus. 03250_ Chain reaction triggered in Lgt. Nuclear Core. 03250_ S-27 Virus destroyed. 03250_ G-67 Veteran destroyed. 03251_ Neutrino Reactor explodes. 03251_ S-27 Virus destroyed. 03251_ Chain reaction triggered in Corrupted Lgt. Nuclear Core. 03251_ P-70 Sage shuts down. 03251_ P-70 Sage destroyed. 03251_ Y-64 Sentinel shuts down. 03251_ Acquired 39 matter. 03251_ Acquired 42 matter. 03252_ Attempting to rewire Y-64 Sentinel. Map ----- +----------------------------------------------------+ | ???????????????????????????????????# """ """ ## | | ???????????????????????????????????# | | ???????????????????????????????????# | | ???????????????????????????????????# ! ! | | ???????????????????????????????????##########+#### | | ???????????????????????????????????????# | | ???????????????????????????????????????# | | ???????????????????????????????????????# " " " | | ??????????????????#????????????????????# " " " | | ??????????????????# ???????????????????# " " " | | ??????????######### ##########?????????#[]= " " " | | ????????? #?????????#[!= " " " | | ????????? ###########!== " " " | | ???????? # # " " " | | ???????? # / " " " | | ???????? # # " " " | | ???????????????######### # # | | ???????????????????##### # ########### | | ????????????????#? # # #?????????? | | ????????????????#! # + #?????????? | | ????????????????# # # #?????????? | | ????????????????# """ # ###########?????????? | | ????????????????# """ # #???????????????????? | | ????????????????# """=# #???????????????????? | | ????????????????# *[#pY #???????????????????? | | ????????????????# @ #???????????????????? | | ????????????????# [ ! +???????????????????? | | ????????????????# % = #???????????????????? | | ????????????????# [ #???????????????????? | | ????????????????#### ;# #???????????????????? | | ?????????????????? # ??????????????????? | | ????????????????? # #?????????????????? | | ??????????????? ?# ????????????????? | | ?????????????? ?# ???????????????? | | ????????????? " ??+ """ """ """??????????????? | | ????????????# "???# """ """ """ ?????????????? | | ????????????# "???# """ ""? ""???????????????? | | ????????????# ??????# ??? ????????????????????? | | ?????????????????????# ??? "????????????????????? | | ?????????????????????# ????"????????????????????? | | ?????????????????????? ?????????????????????????? | | ?????????????????????? ?????????????????????????? | | ?????????????????????????????????????????????????? | | ?????????????????????????????????????????????????? | | ?????????????????????????????????????????????????? | | ?????????????????????????????????????????????????? | | ?????????????????????????????????????????????????? | | ?????????????????????????????????????????????????? | | ?????????????????????????????????????????????????? | | ?????????????????????????????????????????????????? | +----------------------------------------------------+ Best States ------------- Heat Dissipation 74 Coolant Potential 100 Energy Generation 23 Energy Capacity 1010 Matter Stores 300 Matter Capacity 300 Sight Range 16 Robot Scan Range 14 Terrain Scan Density 10 Additional Mass Support 9 Armor Coverage 150 Resistance: TH 30 Propulsion Shielding 33 Evasion (%) 73 Recoil Reduction 2 Defensive Hacking 10 Item Schematics ----------------- None Robot Schematics ------------------ None Fabricated ------------ Nothing Alien Tech Used ----------------- None Achievements -------------- None Challenges ------------ None Game ------ Seed CorruptionElectronKatana Manual? 0 Play Time 00:34:05 Cumulative 160.3 hours Start 2024.05.09 @ 16:41:16 End 2024.05.09 @ 17:16:35 Sessions 1 Manual Loads 0 Difficulty Rogue Special Mode None Game No. 319 Rogue 319 Adventurer 0 Explorer 0 Win Type - Total 0 Types 0/0/0/0/0/0/0/0/0 Lore% 39 Gallery% 60 Achievement% 42 Wizard Run 0 Options --------- Layout 0 ASCII 0 Keyboard 1 Movement Numpad Keybinds 0 Fullscreen 2 Font 18/X11 Map View 76x50 Zoom Use 0% Tactical HUD 1 Map Filters NONE Filters NONE Steam 1 RUN: 51140650-13a3-412c-ada0-50dafd968a29